[Event "Early-Titled-Tuesday-Blitz-February-06-2024"]
[Site "Chess.com"]
[Date "2024.02.06"]
[Round "1"]
[White "ural58"]
[Black "AlmasRakhmatullaev"]
[Result "0-1"]
[WhiteElo "2490"]
[BlackElo "2890"]
[TimeControl "180+1"]
[EndTime "8:06:49 PST"]
[Termination "AlmasRakhmatullaev won on time"]

1. e4 {[%clk 0:02:56.7]} 1... e5 {[%clk 0:02:59]} 2. Nf3 {[%clk 0:02:52.8]} 2...
Nc6 {[%clk 0:02:59]} 3. Bc4 {[%clk 0:02:52.5]} 3... Nf6 {[%clk 0:02:57.7]} 4.
Ng5 {[%clk 0:02:52.3]} 4... d5 {[%clk 0:02:56.9]} 5. exd5 {[%clk 0:02:52.4]}
5... Na5 {[%clk 0:02:56.1]} 6. Bb5+ {[%clk 0:02:52.5]} 6... c6 {[%clk 0:02:56]}
7. dxc6 {[%clk 0:02:52.7]} 7... bxc6 {[%clk 0:02:56.9]} 8. Bd3 {[%clk
0:02:52.6]} 8... Nd5 {[%clk 0:02:54.9]} 9. h4 {[%clk 0:02:51.8]} 9... Nf4 {[%clk
0:02:43]} 10. Bf1 {[%clk 0:02:48]} 10... Qd5 {[%clk 0:02:35]} 11. Qf3 {[%clk
0:02:39.3]} 11... Qc5 {[%clk 0:02:09.7]} 12. Nc3 {[%clk 0:02:28.7]} 12... h6
{[%clk 0:02:08.1]} 13. Nge4 {[%clk 0:02:28.4]} 13... Qe7 {[%clk 0:02:07.7]} 14.
g3 {[%clk 0:02:27.7]} 14... Ne6 {[%clk 0:02:06.4]} 15. Bd3 {[%clk 0:02:03.6]}
15... Nd4 {[%clk 0:02:04.9]} 16. Qg2 {[%clk 0:01:53.6]} 16... f5 {[%clk
0:02:03.4]} 17. b3 {[%clk 0:01:37.1]} 17... fxe4 {[%clk 0:01:57.8]} 18. Bxe4
{[%clk 0:01:37.1]} 18... Bf5 {[%clk 0:01:53.4]} 19. Bxf5 {[%clk 0:01:26]} 19...
Nxf5 {[%clk 0:01:54.3]} 20. Bb2 {[%clk 0:01:25.6]} 20... Nd4 {[%clk 0:01:52]}
21. O-O-O {[%clk 0:01:25.3]} 21... O-O-O {[%clk 0:01:50.7]} 22. Rhe1 {[%clk
0:01:24.5]} 22... Qc7 {[%clk 0:01:42.9]} 23. Na4 {[%clk 0:01:12]} 23... Bd6
{[%clk 0:01:39.1]} 24. f4 {[%clk 0:01:08.7]} 24... Rhe8 {[%clk 0:01:35.4]} 25.
Kb1 {[%clk 0:00:53]} 25... Nb5 {[%clk 0:01:32.9]} 26. f5 {[%clk 0:00:50.2]}
26... Na3+ {[%clk 0:01:27]} 27. Bxa3 {[%clk 0:00:50]} 27... Bxa3 {[%clk
0:01:27.9]} 28. g4 {[%clk 0:00:49.4]} 28... Kb8 {[%clk 0:01:20]} 29. g5 {[%clk
0:00:48.9]} 29... hxg5 {[%clk 0:01:19.1]} 30. hxg5 {[%clk 0:00:49.8]} 30... Rd4
{[%clk 0:01:15.9]} 31. Nc3 {[%clk 0:00:44.2]} 31... Nc4 {[%clk 0:01:12.8]} 32.
f6 {[%clk 0:00:38.7]} 32... gxf6 {[%clk 0:01:11.4]} 33. gxf6 {[%clk 0:00:39]}
33... Red8 {[%clk 0:01:10.8]} 34. d3 {[%clk 0:00:38.4]} 34... Qa5 {[%clk
0:01:01.7]} 35. Na4 {[%clk 0:00:20.6]} 35... Nb6 {[%clk 0:01:01.5]} 36. Nxb6
{[%clk 0:00:19.8]} 36... Qc3 {[%clk 0:00:58]} 0-1

[Event "Early-Titled-Tuesday-Blitz-February-06-2024"]
[Site "Chess.com"]
[Date "2024.02.06"]
[Round "1"]
[White "Der_Balak_3Halak"]
[Black "h4parah5"]
[Result "0-1"]
[WhiteElo "2500"]
[BlackElo "2932"]
[TimeControl "180+1"]
[EndTime "8:06:51 PST"]
[Termination "h4parah5 won by resignation"]

1. e4 {[%clk 0:03:00.9]} 1... c5 {[%clk 0:02:59.5]} 2. Nf3 {[%clk 0:02:59.9]}
2... e6 {[%clk 0:02:57.7]} 3. c3 {[%clk 0:02:58.6]} 3... Nf6 {[%clk 0:02:57.1]}
4. e5 {[%clk 0:02:56]} 4... Nd5 {[%clk 0:02:57.4]} 5. d4 {[%clk 0:02:56.9]} 5...
cxd4 {[%clk 0:02:57.7]} 6. cxd4 {[%clk 0:02:57.8]} 6... b6 {[%clk 0:02:57.7]} 7.
Nc3 {[%clk 0:02:56.5]} 7... Bb7 {[%clk 0:02:55.7]} 8. Bd3 {[%clk 0:02:49.4]}
8... Nxc3 {[%clk 0:02:54.8]} 9. bxc3 {[%clk 0:02:48.4]} 9... Qc7 {[%clk
0:02:55.7]} 10. Bd2 {[%clk 0:02:42.5]} 10... d6 {[%clk 0:02:55.1]} 11. exd6
{[%clk 0:02:20.9]} 11... Bxd6 {[%clk 0:02:56]} 12. Qe2 {[%clk 0:02:14.7]} 12...
Nd7 {[%clk 0:02:54.9]} 13. Be4 {[%clk 0:02:12.3]} 13... O-O {[%clk 0:02:52.9]}
14. O-O {[%clk 0:02:02.1]} 14... Bc6 {[%clk 0:02:49.3]} 15. Rac1 {[%clk
0:01:47]} 15... Bxe4 {[%clk 0:02:47.9]} 16. Qxe4 {[%clk 0:01:46.6]} 16... Qc4
{[%clk 0:02:48.6]} 17. Ng5 {[%clk 0:01:39.7]} 17... Nf6 {[%clk 0:02:46.5]} 18.
Qc2 {[%clk 0:01:37.7]} 18... h6 {[%clk 0:02:41.1]} 19. Ne4 {[%clk 0:01:37.3]}
19... Nxe4 {[%clk 0:02:40.5]} 20. Qxe4 {[%clk 0:01:38.2]} 20... Qxa2 {[%clk
0:02:39.5]} 21. Rc2 {[%clk 0:01:28.5]} 21... Qd5 {[%clk 0:02:37.6]} 22. Qg4
{[%clk 0:01:28.1]} 22... Qf5 {[%clk 0:02:36.5]} 23. Qxf5 {[%clk 0:01:25.9]}
23... exf5 {[%clk 0:02:37.4]} 24. c4 {[%clk 0:01:25.4]} 24... Rac8 {[%clk
0:02:34.6]} 25. Rfc1 {[%clk 0:01:25]} 25... Rc6 {[%clk 0:02:31.6]} 26. c5 {[%clk
0:01:07.5]} 26... Be7 {[%clk 0:02:25]} 27. Bb4 {[%clk 0:00:54.6]} 27... Rd8
{[%clk 0:02:00.9]} 28. cxb6 {[%clk 0:00:31.9]} 28... Rxc2 {[%clk 0:01:59.3]} 29.
Rxc2 {[%clk 0:00:32.8]} 29... Bxb4 {[%clk 0:01:59.4]} 30. bxa7 {[%clk
0:00:23.6]} 30... Ra8 {[%clk 0:01:41.5]} 31. Ra2 {[%clk 0:00:18.4]} 31... Bc3
{[%clk 0:01:35.8]} 32. d5 {[%clk 0:00:17.4]} 32... Bd4 {[%clk 0:01:35.6]} 33.
Rd2 {[%clk 0:00:16.2]} 33... Rxa7 {[%clk 0:01:34.8]} 34. Kf1 {[%clk 0:00:15.6]}
34... Be5 {[%clk 0:01:33.5]} 35. Ke2 {[%clk 0:00:14.7]} 35... Bd6 {[%clk
0:01:33.2]} 36. g3 {[%clk 0:00:14.2]} 36... g6 {[%clk 0:01:33.8]} 37. Kf3 {[%clk
0:00:14.8]} 37... Kg7 {[%clk 0:01:34.4]} 38. h3 {[%clk 0:00:15.4]} 38... Kf6
{[%clk 0:01:35]} 39. Re2 {[%clk 0:00:15.5]} 39... Re7 {[%clk 0:01:34.4]} 40. Rc2
{[%clk 0:00:15.4]} 40... Re5 {[%clk 0:01:34.9]} 41. Rc6 {[%clk 0:00:16.1]} 41...
Rxd5 {[%clk 0:01:34.9]} 42. Kg2 {[%clk 0:00:15.4]} 42... Rd3 {[%clk 0:01:34.3]}
43. Ra6 {[%clk 0:00:14.4]} 43... h5 {[%clk 0:01:34.5]} 44. Kf1 {[%clk
0:00:14.5]} 44... Ke6 {[%clk 0:01:32.3]} 45. Ke2 {[%clk 0:00:15]} 45... Rd5
{[%clk 0:01:32.8]} 46. Kf3 {[%clk 0:00:15.1]} 46... Rd4 {[%clk 0:01:29.8]} 47.
Kg2 {[%clk 0:00:15]} 47... h4 {[%clk 0:01:29.6]} 48. Kf3 {[%clk 0:00:14.8]}
48... hxg3 {[%clk 0:01:29.2]} 49. fxg3 {[%clk 0:00:15.7]} 49... Rd3+ {[%clk
0:01:29.6]} 50. Kf2 {[%clk 0:00:16.4]} 50... Rxg3 {[%clk 0:01:28.8]} 51. Rxd6+
{[%clk 0:00:17]} 51... Kxd6 {[%clk 0:01:29.7]} 52. Kxg3 {[%clk 0:00:17]} 52...
Ke5 {[%clk 0:01:30.6]} 53. Kf3 {[%clk 0:00:17.6]} 53... f4 {[%clk 0:01:30.5]}
54. Kf2 {[%clk 0:00:16.4]} 54... Ke4 {[%clk 0:01:30.5]} 55. Ke2 {[%clk 0:00:17]}
55... f3+ {[%clk 0:01:30.8]} 56. Kf2 {[%clk 0:00:17.9]} 56... Kf4 {[%clk
0:01:31.7]} 57. Kf1 {[%clk 0:00:17.8]} 57... Kg3 {[%clk 0:01:32.1]} 58. Kg1
{[%clk 0:00:18.3]} 58... Kxh3 {[%clk 0:01:32]} 59. Kh1 {[%clk 0:00:19]} 59... g5
{[%clk 0:01:31.1]} 60. Kg1 {[%clk 0:00:19.3]} 60... g4 {[%clk 0:01:31.4]} 61.
Kh1 {[%clk 0:00:20]} 61... g3 {[%clk 0:01:30.6]} 62. Kg1 {[%clk 0:00:20.9]}
62... f2+ {[%clk 0:01:28.8]} 63. Kf1 {[%clk 0:00:21.5]} 63... g2+ {[%clk
0:01:27.8]} 64. Kxf2 {[%clk 0:00:21.2]} 64... Kh2 {[%clk 0:01:28.7]} 0-1

[Event "Early-Titled-Tuesday-Blitz-February-06-2024"]
[Site "Chess.com"]
[Date "2024.02.06"]
[Round "1"]
[White "BeautiFullMindChess"]
[Black "karinachess1"]
[Result "0-1"]
[WhiteElo "2286"]
[BlackElo "2618"]
[TimeControl "180+1"]
[EndTime "8:06:53 PST"]
[Termination "karinachess1 won by resignation"]

1. e4 {[%clk 0:02:59.5]} 1... e5 {[%clk 0:02:59.9]} 2. Nf3 {[%clk 0:02:59.4]}
2... Nc6 {[%clk 0:03:00.2]} 3. Bc4 {[%clk 0:02:59.2]} 3... Nf6 {[%clk
0:02:59.9]} 4. d3 {[%clk 0:02:59.1]} 4... h6 {[%clk 0:02:59.6]} 5. a4 {[%clk
0:02:57.3]} 5... d6 {[%clk 0:02:59.4]} 6. c3 {[%clk 0:02:57.9]} 6... g5 {[%clk
0:02:58.5]} 7. Nbd2 {[%clk 0:02:51.5]} 7... Bg7 {[%clk 0:02:58]} 8. Nf1 {[%clk
0:02:50.1]} 8... Be6 {[%clk 0:02:47.9]} 9. Ne3 {[%clk 0:02:49.3]} 9... Qd7
{[%clk 0:02:48]} 10. a5 {[%clk 0:02:48.8]} 10... a6 {[%clk 0:02:47.9]} 11. b4
{[%clk 0:02:48.4]} 11... d5 {[%clk 0:02:43.4]} 12. b5 {[%clk 0:02:26.1]} 12...
axb5 {[%clk 0:02:07.5]} 13. Bxb5 {[%clk 0:02:24]} 13... Ng4 {[%clk 0:01:32.6]}
14. Nxd5 {[%clk 0:01:44.4]} 14... Bxd5 {[%clk 0:01:22.5]} 15. exd5 {[%clk
0:01:45.3]} 15... Qxd5 {[%clk 0:01:23.2]} 16. Bc4 {[%clk 0:01:39]} 16... Qd7
{[%clk 0:01:21.6]} 17. Ba3 {[%clk 0:01:12.4]} 17... e4 {[%clk 0:01:02.1]} 18.
O-O {[%clk 0:01:02.7]} 18... exf3 {[%clk 0:01:00.4]} 19. Qxf3 {[%clk 0:01:03.6]}
19... Nge5 {[%clk 0:00:59.8]} 20. Rfe1 {[%clk 0:01:02.2]} 20... O-O-O {[%clk
0:00:50.8]} 21. Qe4 {[%clk 0:00:26.9]} 21... Nxc4 {[%clk 0:00:48.9]} 22. Qxc4
{[%clk 0:00:19.3]} 22... Qxd3 {[%clk 0:00:49]} 23. Qxf7 {[%clk 0:00:19.3]} 23...
Bxc3 {[%clk 0:00:42.6]} 24. a6 {[%clk 0:00:16.8]} 24... Bxa1 {[%clk 0:00:34.2]}
25. Rxa1 {[%clk 0:00:15]} 25... Qxa6 {[%clk 0:00:31.4]} 26. h3 {[%clk
0:00:13.4]} 26... Rd7 {[%clk 0:00:28.5]} 27. Qe6 {[%clk 0:00:12.8]} 27... Rd8
{[%clk 0:00:27.4]} 28. Bb2 {[%clk 0:00:12.8]} 28... Na5 {[%clk 0:00:23.5]} 29.
Bc3 {[%clk 0:00:12.2]} 29... Qxe6 {[%clk 0:00:23.1]} 30. Rxa5 {[%clk 0:00:10.3]}
30... b6 {[%clk 0:00:23.1]} 0-1

[Event "Early-Titled-Tuesday-Blitz-February-06-2024"]
[Site "Chess.com"]
[Date "2024.02.06"]
[Round "1"]
[White "VitaliyBernadskiy"]
[Black "LornerAcosta"]
[Result "1-0"]
[WhiteElo "2905"]
[BlackElo "2495"]
[TimeControl "180+1"]
[EndTime "8:06:55 PST"]
[Termination "VitaliyBernadskiy won on time"]

1. e4 {[%clk 0:03:00.9]} 1... c5 {[%clk 0:02:52.6]} 2. Nc3 {[%clk 0:03:01.8]}
2... Nc6 {[%clk 0:02:47.6]} 3. Nf3 {[%clk 0:03:01.7]} 3... e6 {[%clk 0:02:45.1]}
4. Bb5 {[%clk 0:02:59.9]} 4... Nge7 {[%clk 0:02:44.4]} 5. O-O {[%clk 0:02:59.9]}
5... a6 {[%clk 0:02:44.4]} 6. Bxc6 {[%clk 0:03:00.3]} 6... Nxc6 {[%clk
0:02:45.3]} 7. d4 {[%clk 0:03:01.1]} 7... cxd4 {[%clk 0:02:45.4]} 8. Nxd4 {[%clk
0:03:02]} 8... Be7 {[%clk 0:02:44.9]} 9. Nxc6 {[%clk 0:03:01.8]} 9... bxc6
{[%clk 0:02:44.6]} 10. e5 {[%clk 0:03:01.9]} 10... O-O {[%clk 0:02:43.9]} 11.
Ne4 {[%clk 0:02:57.6]} 11... Qc7 {[%clk 0:02:23.7]} 12. Bf4 {[%clk 0:02:51.9]}
12... c5 {[%clk 0:02:21.4]} 13. Qg4 {[%clk 0:02:49.8]} 13... Kh8 {[%clk
0:02:14.3]} 14. Rad1 {[%clk 0:02:39.6]} 14... Bb7 {[%clk 0:02:13.1]} 15. Rfe1
{[%clk 0:02:39.9]} 15... Bc6 {[%clk 0:02:09.8]} 16. Rd3 {[%clk 0:02:38.2]} 16...
Qb7 {[%clk 0:01:59.6]} 17. Rg3 {[%clk 0:02:32.5]} 17... Rg8 {[%clk 0:01:35]} 18.
Rb3 {[%clk 0:02:23]} 18... Qc8 {[%clk 0:01:26.2]} 19. Rh3 {[%clk 0:02:20.1]}
19... Bxe4 {[%clk 0:01:15]} 20. Rxe4 {[%clk 0:02:21]} 20... g5 {[%clk
0:01:14.8]} 21. Bd2 {[%clk 0:02:07.2]} 21... Rg7 {[%clk 0:01:13]} 22. Rd3 {[%clk
0:02:00]} 22... Qc6 {[%clk 0:01:11.2]} 23. Rc4 {[%clk 0:01:56.1]} 23... Rag8
{[%clk 0:01:09]} 24. Bc3 {[%clk 0:01:54.8]} 24... Rg6 {[%clk 0:01:06.6]} 25. Qe4
{[%clk 0:01:54.6]} 25... Qc7 {[%clk 0:01:02.7]} 26. Ra4 {[%clk 0:01:51.3]} 26...
g4 {[%clk 0:00:53.6]} 27. Rxa6 {[%clk 0:01:48.3]} 27... f5 {[%clk 0:00:29.4]}
28. exf6 {[%clk 0:01:32.9]} 28... Bxf6 {[%clk 0:00:26.3]} 29. Bxf6+ {[%clk
0:01:19.1]} 29... Rxf6 {[%clk 0:00:26.1]} 30. Ra8 {[%clk 0:01:19.8]} 30... Rxa8
{[%clk 0:00:20.5]} 31. Qxa8+ {[%clk 0:01:20.7]} 31... Kg7 {[%clk 0:00:20.7]} 32.
Qe4 {[%clk 0:01:15.4]} 32... h5 {[%clk 0:00:20]} 33. h3 {[%clk 0:01:13]} 33...
d5 {[%clk 0:00:14.5]} 34. Qe2 {[%clk 0:01:12.3]} 34... c4 {[%clk 0:00:14.1]} 35.
Rg3 {[%clk 0:01:12]} 35... Qf4 {[%clk 0:00:12.3]} 36. hxg4 {[%clk 0:01:09.7]}
36... h4 {[%clk 0:00:10.2]} 37. Rf3 {[%clk 0:01:07.6]} 37... Qc1+ {[%clk
0:00:07.2]} 38. Kh2 {[%clk 0:01:06.4]} 38... Qxb2 {[%clk 0:00:06.7]} 39. Rxf6
{[%clk 0:00:48.5]} 39... Qxf6 {[%clk 0:00:07.6]} 40. a4 {[%clk 0:00:48.4]} 40...
Qf4+ {[%clk 0:00:02]} 41. Kh3 {[%clk 0:00:48.6]} 1-0

[Event "Early-Titled-Tuesday-Blitz-February-06-2024"]
[Site "Chess.com"]
[Date "2024.02.06"]
[Round "1"]
[White "Aslanov_Umid"]
[Black "Shivananda1964"]
[Result "1-0"]
[WhiteElo "2671"]
[BlackElo "2352"]
[TimeControl "180+1"]
[EndTime "8:06:55 PST"]
[Termination "Aslanov_Umid won on time"]

1. e4 {[%clk 0:03:00.9]} 1... Nc6 {[%clk 0:02:58.7]} 2. d4 {[%clk 0:03:00.7]}
2... e5 {[%clk 0:02:58.1]} 3. d5 {[%clk 0:03:00.2]} 3... Nce7 {[%clk 0:02:58.2]}
4. Nf3 {[%clk 0:03:00.1]} 4... Ng6 {[%clk 0:02:58.2]} 5. Bd3 {[%clk 0:02:53.4]}
5... Bc5 {[%clk 0:02:57.2]} 6. a4 {[%clk 0:02:42.5]} 6... a6 {[%clk 0:02:56.4]}
7. Nbd2 {[%clk 0:02:40.1]} 7... d6 {[%clk 0:02:53.9]} 8. Nc4 {[%clk 0:02:38.7]}
8... Nf6 {[%clk 0:02:48.3]} 9. h3 {[%clk 0:02:37.6]} 9... O-O {[%clk 0:02:32.9]}
10. c3 {[%clk 0:02:31.5]} 10... Bd7 {[%clk 0:02:28.7]} 11. b4 {[%clk 0:02:27.7]}
11... Ba7 {[%clk 0:02:28.6]} 12. a5 {[%clk 0:02:27.3]} 12... Qe7 {[%clk
0:02:13]} 13. Bg5 {[%clk 0:01:47.6]} 13... h6 {[%clk 0:02:10.6]} 14. Bd2 {[%clk
0:01:47.3]} 14... Nh5 {[%clk 0:02:07.6]} 15. Be3 {[%clk 0:01:16.9]} 15... Ngf4
{[%clk 0:01:59]} 16. Bf1 {[%clk 0:01:16.4]} 16... f5 {[%clk 0:01:54.2]} 17. exf5
{[%clk 0:01:08]} 17... e4 {[%clk 0:01:23.1]} 18. Nd4 {[%clk 0:01:07.8]} 18...
Bxd4 {[%clk 0:00:29.5]} 19. Bxd4 {[%clk 0:01:03.3]} 19... Bxf5 {[%clk
0:00:26.1]} 20. Ne3 {[%clk 0:00:46.7]} 20... Bh7 {[%clk 0:00:24.7]} 21. g3
{[%clk 0:00:43.7]} 21... Nxg3 {[%clk 0:00:07.8]} 22. fxg3 {[%clk 0:00:44.6]}
22... Nd3+ {[%clk 0:00:08.2]} 23. Bxd3 {[%clk 0:00:42.2]} 23... exd3 {[%clk
0:00:08.7]} 24. Qg4 {[%clk 0:00:38.6]} 24... Rae8 {[%clk 0:00:07.2]} 25. O-O-O
{[%clk 0:00:35.3]} 25... Rf2 {[%clk 0:00:05.9]} 26. Rd2 {[%clk 0:00:33.5]} 26...
Rxd2 {[%clk 0:00:05.2]} 27. Kxd2 {[%clk 0:00:34.4]} 27... Be4 {[%clk 0:00:04.6]}
28. Re1 {[%clk 0:00:33.2]} 28... c5 {[%clk 0:00:04.8]} 29. Nf5 {[%clk
0:00:28.3]} 29... Bxf5 {[%clk 0:00:02.6]} 30. Rxe7 {[%clk 0:00:28.8]} 1-0

[Event "Early-Titled-Tuesday-Blitz-February-06-2024"]
[Site "Chess.com"]
[Date "2024.02.06"]
[Round "1"]
[White "Iskusnyh"]
[Black "Roedor"]
[Result "1-0"]
[WhiteElo "2659"]
[BlackElo "2343"]
[TimeControl "180+1"]
[EndTime "8:06:55 PST"]
[Termination "Iskusnyh won by resignation"]

1. d4 {[%clk 0:02:59.5]} 1... Nf6 {[%clk 0:02:57.9]} 2. c4 {[%clk 0:02:58.7]}
2... g6 {[%clk 0:02:58]} 3. g3 {[%clk 0:02:58]} 3... Bg7 {[%clk 0:02:57.4]} 4.
Bg2 {[%clk 0:02:58]} 4... O-O {[%clk 0:02:57.9]} 5. Nc3 {[%clk 0:02:57.9]} 5...
c5 {[%clk 0:02:57]} 6. dxc5 {[%clk 0:02:55.6]} 6... Na6 {[%clk 0:02:54]} 7. Nh3
{[%clk 0:02:54.3]} 7... Nxc5 {[%clk 0:02:53.5]} 8. O-O {[%clk 0:02:52.6]} 8...
d6 {[%clk 0:02:52.3]} 9. Nf4 {[%clk 0:02:52.2]} 9... Rb8 {[%clk 0:02:51]} 10.
Bd2 {[%clk 0:02:45.3]} 10... a6 {[%clk 0:02:50.6]} 11. Rc1 {[%clk 0:02:26.9]}
11... b5 {[%clk 0:02:48.9]} 12. cxb5 {[%clk 0:02:24.9]} 12... axb5 {[%clk
0:02:49.8]} 13. b4 {[%clk 0:02:17.7]} 13... Ne6 {[%clk 0:02:43.8]} 14. Nfd5
{[%clk 0:02:16.5]} 14... Bb7 {[%clk 0:02:36.7]} 15. Nxf6+ {[%clk 0:02:13.4]}
15... Bxf6 {[%clk 0:02:37.6]} 16. Nd5 {[%clk 0:02:10.1]} 16... Bb2 {[%clk
0:02:24.9]} 17. Rc2 {[%clk 0:01:46.2]} 17... Bg7 {[%clk 0:02:24.6]} 18. Be3
{[%clk 0:01:42.9]} 18... Bxd5 {[%clk 0:02:02.9]} 19. Qxd5 {[%clk 0:01:39.1]}
19... Qd7 {[%clk 0:01:51.5]} 20. Rfc1 {[%clk 0:01:32.8]} 20... h5 {[%clk
0:01:51]} 21. Bh3 {[%clk 0:01:20.3]} 21... Ra8 {[%clk 0:01:12.8]} 22. Qd3 {[%clk
0:01:10.2]} 22... Ra4 {[%clk 0:00:55.7]} 23. Rb1 {[%clk 0:00:32.9]} 23... Rfa8
{[%clk 0:00:53.1]} 24. Bg2 {[%clk 0:00:32.6]} 24... Rb8 {[%clk 0:00:40.2]} 25.
Bc6 {[%clk 0:00:31.5]} 25... Qd8 {[%clk 0:00:05.9]} 26. Bxb5 {[%clk 0:00:31.4]}
26... h4 {[%clk 0:00:02.5]} 27. Bxa4 {[%clk 0:00:30.2]} 1-0

[Event "Early-Titled-Tuesday-Blitz-February-06-2024"]
[Site "Chess.com"]
[Date "2024.02.06"]
[Round "1"]
[White "GMWSO"]
[Black "ChessRespected"]
[Result "1-0"]
[WhiteElo "3094"]
[BlackElo "2529"]
[TimeControl "180+1"]
[EndTime "8:06:56 PST"]
[Termination "GMWSO won on time"]

1. b3 {[%clk 0:02:29.4]} 1... d5 {[%clk 0:02:59.1]} 2. Bb2 {[%clk 0:02:30.3]}
2... Nf6 {[%clk 0:02:59.3]} 3. Nf3 {[%clk 0:02:29.9]} 3... Bf5 {[%clk
0:02:56.4]} 4. Nh4 {[%clk 0:02:27.8]} 4... Bg6 {[%clk 0:02:53.8]} 5. g3 {[%clk
0:02:27]} 5... e6 {[%clk 0:02:53.5]} 6. Bg2 {[%clk 0:02:26.8]} 6... Nbd7 {[%clk
0:02:53]} 7. O-O {[%clk 0:02:25.2]} 7... Bh5 {[%clk 0:02:50.4]} 8. c4 {[%clk
0:02:21]} 8... c6 {[%clk 0:02:49.8]} 9. d4 {[%clk 0:02:17.2]} 9... Be7 {[%clk
0:02:45.9]} 10. Nd2 {[%clk 0:02:14.6]} 10... a5 {[%clk 0:02:41.6]} 11. h3 {[%clk
0:02:14]} 11... Ne4 {[%clk 0:02:38.3]} 12. cxd5 {[%clk 0:02:08]} 12... cxd5
{[%clk 0:02:29.7]} 13. Nxe4 {[%clk 0:02:05.6]} 13... dxe4 {[%clk 0:02:30.6]} 14.
d5 {[%clk 0:02:05.5]} 14... Bxh4 {[%clk 0:02:25.6]} 15. dxe6 {[%clk 0:02:00.1]}
15... fxe6 {[%clk 0:02:23.5]} 16. gxh4 {[%clk 0:01:58.9]} 16... Qxh4 {[%clk
0:02:20.1]} 17. Qd6 {[%clk 0:01:57.5]} 17... Qe7 {[%clk 0:02:08.6]} 18. Qxe7+
{[%clk 0:01:32.7]} 18... Kxe7 {[%clk 0:02:09.5]} 19. Bxe4 {[%clk 0:01:28.5]}
19... Nf6 {[%clk 0:01:52.5]} 20. Bxb7 {[%clk 0:01:26.3]} 20... Rab8 {[%clk
0:01:52]} 21. Ba6 {[%clk 0:01:26.2]} 21... Nd5 {[%clk 0:01:45.5]} 22. Kh2 {[%clk
0:01:17.9]} 22... Nb4 {[%clk 0:01:34.5]} 23. Bc4 {[%clk 0:01:15.3]} 23... Rhc8
{[%clk 0:01:32.9]} 24. Bxg7 {[%clk 0:01:12.9]} 24... a4 {[%clk 0:01:14.5]} 25.
Be5 {[%clk 0:01:09.4]} 25... Rb6 {[%clk 0:01:07.4]} 26. Rg1 {[%clk 0:01:09.3]}
26... Bg6 {[%clk 0:01:05.6]} 27. h4 {[%clk 0:01:02.7]} 27... Nc6 {[%clk
0:01:04]} 28. Bc3 {[%clk 0:01:00.9]} 28... e5 {[%clk 0:00:55.2]} 29. Rad1 {[%clk
0:00:55.3]} 29... axb3 {[%clk 0:00:50.3]} 30. axb3 {[%clk 0:00:56.2]} 30... Bc2
{[%clk 0:00:42.4]} 31. Rg7+ {[%clk 0:00:54.1]} 31... Kf6 {[%clk 0:00:41.5]} 32.
Rf7+ {[%clk 0:00:54]} 32... Kg6 {[%clk 0:00:39.4]} 33. Rg1+ {[%clk 0:00:51.9]}
33... Kh5 {[%clk 0:00:35.8]} 34. Kh3 {[%clk 0:00:51.6]} 34... h6 {[%clk
0:00:29.8]} 35. Rf6 {[%clk 0:00:47.5]} 35... Rb7 {[%clk 0:00:20.5]} 36. e3
{[%clk 0:00:46.3]} 1-0

[Event "Early-Titled-Tuesday-Blitz-February-06-2024"]
[Site "Chess.com"]
[Date "2024.02.06"]
[Round "1"]
[White "djano"]
[Black "the_blue_pill"]
[Result "1-0"]
[WhiteElo "2622"]
[BlackElo "2301"]
[TimeControl "180+1"]
[EndTime "8:06:56 PST"]
[Termination "djano won by resignation"]

1. e4 {[%clk 0:03:00.9]} 1... c5 {[%clk 0:02:59.6]} 2. Nc3 {[%clk 0:03:00.8]}
2... g6 {[%clk 0:02:58]} 3. Bc4 {[%clk 0:03:00.2]} 3... Nc6 {[%clk 0:02:55]} 4.
h4 {[%clk 0:02:59.1]} 4... h5 {[%clk 0:02:42.3]} 5. d3 {[%clk 0:02:56.1]} 5...
e6 {[%clk 0:02:39.2]} 6. Bg5 {[%clk 0:02:50.6]} 6... Be7 {[%clk 0:02:39]} 7. Nf3
{[%clk 0:02:49.8]} 7... a6 {[%clk 0:02:37.3]} 8. a3 {[%clk 0:02:48.9]} 8... b5
{[%clk 0:02:33.4]} 9. Ba2 {[%clk 0:02:49]} 9... Nd4 {[%clk 0:02:31.3]} 10. Be3
{[%clk 0:02:44.1]} 10... Bf6 {[%clk 0:02:23.2]} 11. e5 {[%clk 0:02:41.4]} 11...
Bg7 {[%clk 0:02:13.6]} 12. Nxd4 {[%clk 0:02:41.5]} 12... cxd4 {[%clk 0:02:13.9]}
13. Bxd4 {[%clk 0:02:42.4]} 13... Bb7 {[%clk 0:02:13.3]} 14. f3 {[%clk
0:02:36.6]} 14... d6 {[%clk 0:02:05.5]} 15. Qe2 {[%clk 0:02:33.4]} 15... Ne7
{[%clk 0:02:05.1]} 16. Ne4 {[%clk 0:01:59]} 16... dxe5 {[%clk 0:02:01.8]} 17.
Bc3 {[%clk 0:01:55.9]} 17... Nf5 {[%clk 0:01:57.5]} 18. O-O-O {[%clk 0:01:49.3]}
18... Rc8 {[%clk 0:01:54.5]} 19. Kb1 {[%clk 0:01:47.4]} 19... Qc7 {[%clk
0:01:34]} 20. Rc1 {[%clk 0:01:39.7]} 20... Bxe4 {[%clk 0:01:27.8]} 21. Qxe4
{[%clk 0:01:32.9]} 21... Ng3 {[%clk 0:01:27.8]} 22. Qb4 {[%clk 0:01:33]} 22...
Nxh1 {[%clk 0:01:26.6]} 23. Rxh1 {[%clk 0:01:33.9]} 23... Qc5 {[%clk 0:01:19.9]}
24. Qa5 {[%clk 0:01:34.4]} 24... O-O {[%clk 0:01:15.6]} 25. Bb3 {[%clk
0:01:32.5]} 25... Qc6 {[%clk 0:01:07.2]} 26. Re1 {[%clk 0:01:25.4]} 26... Rfd8
{[%clk 0:00:59.3]} 27. Qb4 {[%clk 0:01:23]} 27... Qc7 {[%clk 0:00:51.4]} 28. Qe4
{[%clk 0:01:19.9]} 28... a5 {[%clk 0:00:51.8]} 29. g4 {[%clk 0:01:17.3]} 29...
a4 {[%clk 0:00:43.9]} 30. Ba2 {[%clk 0:01:16.6]} 30... hxg4 {[%clk 0:00:29.2]}
31. fxg4 {[%clk 0:01:17.5]} 31... Rd4 {[%clk 0:00:20.7]} 32. Qe2 {[%clk
0:01:13.5]} 32... Rf4 {[%clk 0:00:16.3]} 33. h5 {[%clk 0:01:10]} 33... gxh5
{[%clk 0:00:14.7]} 34. gxh5 {[%clk 0:01:09.2]} 34... b4 {[%clk 0:00:14.7]} 35.
axb4 {[%clk 0:01:08.7]} 35... a3 {[%clk 0:00:14.2]} 36. Rg1 {[%clk 0:01:05.3]}
36... f5 {[%clk 0:00:10.7]} 37. Bxe5 {[%clk 0:00:56.7]} 37... Qxe5 {[%clk
0:00:10.3]} 38. Qxe5 {[%clk 0:00:39.5]} 38... Rf1+ {[%clk 0:00:09.8]} 39. Rxf1
{[%clk 0:00:39.8]} 39... Bxe5 {[%clk 0:00:10.1]} 40. Bxe6+ {[%clk 0:00:40.5]}
40... Kg7 {[%clk 0:00:09.7]} 41. Bxc8 {[%clk 0:00:41.4]} 1-0